{"text_format":"3","workbook":"xlsx","n_sheets":2,"sheets":["Початок","Рахунок за надані послуги"],"not_rendered":{"images":1,"defined_names":1},"read":"whole","date_system":"1900"}

{"sheet":"Початок","index":0,"n_rows":8,"n_cols":2,"rows_kept":8}
[null,"ПРО ЦЕЙ ШАБЛОН"]
[null,"Використовуйте цей шаблон, щоб створити рахунок за надані послуги."]
[null,"Введіть номер рахунка-фактури, дату, назву компанії, адресу, гасло і відомості про отримувача."]
[null,"Введіть відомості в таблиці."]
[null,"Підсумок обчислюється автоматично."]
[null,"Примітка. "]
[null,"Додаткові вказівки наведено в стовпці A на аркуші «РАХУНОК ЗА НАДАНІ ПОСЛУГИ». Цей текст приховано навмисно. Щоб вилучити текст, виберіть стовпець A й натисніть клавішу Delete. Щоб відобразити текст, виберіть стовпець A та змініть колір шрифту."]
[null,"Щоб дізнатися більше про таблиці, натисніть клавіші Shift+F10 у таблиці, виберіть \"Таблиця\", а потім – \"Текст заміщення\"."]

{"sheet":"Рахунок за надані послуги","index":1,"n_rows":44,"n_cols":5,"rows_kept":44,"merged":[[0,1,0,2],[0,3,0,4],[2,1,2,3],[3,1,3,3],[4,1,4,2],[5,1,5,2],[6,1,6,2],[7,1,7,2],[41,1,41,2],[41,3,41,4],[43,1,43,4]]}
[null,"Заповнювач для емблеми наведено в цій клітинці.",null,"РАХУНОК-ФАКТУРА"]
[]
[null,"Назва компанії"]
[null,"Гасло компанії"]
[null,"Поштова адреса",null,"№ РАХУНКА:","Номер"]
[null,"Місто, область, індекс",null,"ДАТА ",{"$f":"TODAY()","v":"2022-05-07"}]
[null,"Телефон Факс",null,"ІДЕНТИФІКАТОР КЛІЄНТА ","Ідентифікатор"]
[null,"Електронна пошта"]
[null,"ОДЕРЖУВАЧ","Ім’я"]
[null,null,"Назва компанії"]
[null,null,"Поштова адреса"]
[null,null,"Місто, область, поштовий індекс"]
[null,null,"Телефон"]
[null,"ПРОДАВЕЦЬ","ПОСЛУГА","УМОВИ ОПЛАТИ","ТЕРМІН"]
[{"$nulls":3},"Підлягає сплаті відразу після отримання"]
[]
[null,"КІЛЬКІСТЬ","ОПИС","ЦІНА ЗА ОДИНИЦЮ","ЗАГАЛЬНА СУМА В РЯДКУ"]
[{"$nulls":4},{"$f":"IF(SUM(B18)>0,SUM(B18*'Рахунок за надані послуги'!$D18),\"\")","v":""}]
[{"$nulls":4},{"$f":"IF(SUM(B19)>0,SUM(B19*'Рахунок за надані послуги'!$D19),\"\")","v":""}]
[{"$nulls":4},{"$f":"IF(SUM(B20)>0,SUM(B20*'Рахунок за надані послуги'!$D20),\"\")","v":""}]
[{"$nulls":4},{"$f":"IF(SUM(B21)>0,SUM(B21*'Рахунок за надані послуги'!$D21),\"\")","v":""}]
[{"$nulls":4},{"$f":"IF(SUM(B22)>0,SUM(B22*'Рахунок за надані послуги'!$D22),\"\")","v":""}]
[{"$nulls":4},{"$f":"IF(SUM(B23)>0,SUM(B23*'Рахунок за надані послуги'!$D23),\"\")","v":""}]
[{"$nulls":4},{"$f":"IF(SUM(B24)>0,SUM(B24*'Рахунок за надані послуги'!$D24),\"\")","v":""}]
[{"$nulls":4},{"$f":"IF(SUM(B25)>0,SUM(B25*'Рахунок за надані послуги'!$D25),\"\")","v":""}]
[{"$nulls":4},{"$f":"IF(SUM(B26)>0,SUM(B26*'Рахунок за надані послуги'!$D26),\"\")","v":""}]
[{"$nulls":4},{"$f":"IF(SUM(B27)>0,SUM(B27*'Рахунок за надані послуги'!$D27),\"\")","v":""}]
[{"$nulls":4},{"$f":"IF(SUM(B28)>0,SUM(B28*'Рахунок за надані послуги'!$D28),\"\")","v":""}]
[{"$nulls":4},{"$f":"IF(SUM(B29)>0,SUM(B29*'Рахунок за надані послуги'!$D29),\"\")","v":""}]
[{"$nulls":4},{"$f":"IF(SUM(B30)>0,SUM(B30*'Рахунок за надані послуги'!$D30),\"\")","v":""}]
[{"$nulls":4},{"$f":"IF(SUM(B31)>0,SUM(B31*'Рахунок за надані послуги'!$D31),\"\")","v":""}]
[{"$nulls":4},{"$f":"IF(SUM(B32)>0,SUM(B32*'Рахунок за надані послуги'!$D32),\"\")","v":""}]
[{"$nulls":4},{"$f":"IF(SUM(B33)>0,SUM(B33*'Рахунок за надані послуги'!$D33),\"\")","v":""}]
[{"$nulls":4},{"$f":"IF(SUM(B34)>0,SUM(B34*'Рахунок за надані послуги'!$D34),\"\")","v":""}]
[{"$nulls":4},{"$f":"IF(SUM(B35)>0,SUM(B35*'Рахунок за надані послуги'!$D35),\"\")","v":""}]
[{"$nulls":4},{"$f":"IF(SUM(B36)>0,SUM(B36*'Рахунок за надані послуги'!$D36),\"\")","v":""}]
[{"$nulls":4},{"$f":"IF(SUM(B37)>0,SUM(B37*'Рахунок за надані послуги'!$D37),\"\")","v":""}]
[{"$nulls":3},"ПРОМІЖНИЙ ПІДСУМОК",{"$f":"IF(SUM(E18:E37)>0,SUM(E18:E37),\"\")","v":""}]
[{"$nulls":3},"ПОДАТОК З ОБОРОТУ"]
[{"$nulls":3},"ПІДСУМОК",{"$f":"IF(SUM(E38)>0,SUM((E38*E39)+E38),\"\")","v":""}]
[]
[null,"Одержувач платежу",null,{"$f":"B3","v":"Назва компанії"}]
[]
[null,"ДЯКУЄМО ЗА СПІВПРАЦЮ!"]